fUST/lending_fUST_20250910
["ID","MTS","AMOUNT","RATE_DAILY","PERIOD"]
[384597726,1757469051052,-480.0,0.00015342,2]
[384597728,1757469051062,-480.0,0.00015342,2]
[384597730,1757469051071,-480.0,0.00015342,2]
[384597732,1757469051082,-480.0,0.00015342,2]
[384597734,1757469051091,-480.0,0.00015342,2]
[384597736,1757469051101,-480.0,0.00015342,2]
[384597738,1757469051110,-480.0,0.00015342,2]
[384597740,1757469051120,-480.0,0.00015342,2]
[384597742,1757469051129,-480.0,0.00015342,2]
[384597744,1757469051139,-480.0,0.00015342,2]
[384597746,1757469051148,-480.0,0.00015342,2]
[384597748,1757469051158,-480.0,0.00015342,2]
[384597750,1757469051167,-542.45,0.00015342,2]
[384597752,1757469051176,-535.37,0.00015342,2]
[384597754,1757469051185,-480.0,0.00015342,2]
[384597756,1757469051195,-480.0,0.00015342,2]
[384597758,1757469051204,-480.0,0.00015342,2]
[384597760,1757469051213,-832.79,0.00015342,2]
[384597762,1757469051223,-480.0,0.00015342,2]
[384597764,1757469051233,-3879.1,0.00015342,2]
[384597766,1757469051242,-480.0,0.00015342,2]
[384597768,1757469051251,-536.0,0.00015342,2]
[384597770,1757469051261,-2370.24,0.00015342,2]
[384597772,1757469051270,-480.0,0.00015342,2]
[384597774,1757469051279,-480.0,0.00015342,2]
[384597776,1757469051288,-480.0,0.00015342,2]
[384597778,1757469051297,-480.0,0.00015342,2]
[384597780,1757469051307,-480.0,0.00015342,2]
[384597782,1757469051316,-993.33,0.00015342,2]
[384597784,1757469051326,-480.0,0.00015342,2]
[384597786,1757469051335,-1897.73,0.00015342,2]
[384597788,1757469051346,-480.0,0.00015342,2]
[384597790,1757469051356,-480.0,0.00015342,2]
[384597792,1757469051365,-1860.62,0.00015342,2]
[384597794,1757469051375,-480.0,0.00015342,2]
[384597796,1757469051384,-390.16635701,0.00015366,7]
[384597797,1757469051392,-3000.0,0.0001541,2]
[384597798,1757469051401,-480.0,0.00015615,2]
[384597799,1757469051411,-480.0,0.00015615,2]
[384597800,1757469051420,-486.73915158,0.00015615,2]
[384597801,1757469051429,-492.25,0.00015615,2]
[384597802,1757469051438,-480.0,0.00015615,2]
[384597803,1757469051447,-480.0,0.00015615,2]
[384597804,1757469051457,-480.0,0.00015615,2]
[384597805,1757469051466,-206.32818204,0.00015615,2]
[384597806,1757469051475,-480.0,0.00015615,2]
[384597807,1757469051485,-480.0,0.00015616,2]
[384597808,1757469051494,-480.0,0.00015616,2]
[384597809,1757469051503,-480.0,0.00015616,2]
[384597810,1757469051513,-480.0,0.00015616,2]
[384597811,1757469051521,-480.0,0.00015616,2]
[384597812,1757469051531,-480.0,0.00015616,2]
[384597813,1757469051540,-480.0,0.00015616,2]
[384597814,1757469051550,-480.0,0.00015616,2]
[384597815,1757469051559,-498.71336447,0.00015616,2]
[384597816,1757469051569,-480.0,0.00015616,2]
[384597817,1757469051578,-480.0,0.00015616,2]
[384597818,1757469051587,-480.0,0.00015616,2]
[384597819,1757469051597,-480.0,0.00015616,2]
[384597821,1757469051606,-480.0,0.00015616,2]
[384597823,1757469051615,-480.0,0.00015616,2]
[384597825,1757469051624,-480.0,0.00015616,2]
[384597827,1757469051633,-480.0,0.00015616,2]
[384597829,1757469051642,-480.0,0.00015616,2]
[384597831,1757469051651,-480.0,0.00015616,2]
[384597833,1757469051660,-480.0,0.00015616,2]
[384597835,1757469051669,-480.0,0.00015616,2]
[384597837,1757469051678,-480.0,0.00015616,2]
[384597839,1757469051687,-480.0,0.00015616,2]
[384597841,1757469051696,-480.0,0.00015616,2]
[384597843,1757469051706,-151.0,0.00015616,2]
[384597845,1757469051715,-480.0,0.00015616,2]
[384597847,1757469051724,-480.0,0.00015616,2]
[384597849,1757469051733,-480.0,0.00015616,2]
[384597851,1757469051742,-259.00420795,0.00015616,2]
[384597853,1757469051752,-481.9287002,0.00015616,2]
[384597855,1757469051761,-480.0,0.00015616,2]
[384597857,1757469051771,-941.92,0.00015616,2]
[384597859,1757469051781,-480.0,0.00015616,2]
[384597861,1757469051791,-480.0,0.00015616,2]
[384597863,1757469051800,-480.0,0.00015616,2]
[384597865,1757469051809,-7890.58076878,0.00015616,2]
[384597917,1757469056597,-44.15768779,0.00015616,2]
[384597918,1757469056815,-480.0,0.00013698,2]
[384597919,1757469056825,-480.0,0.00013972,2]
[384597920,1757469056835,-480.0,0.00013972,2]
[384597921,1757469056855,-480.0,0.00014246,2]
[384597922,1757469056864,-480.0,0.00014246,2]
[384597923,1757469056874,-480.0,0.0001452,2]
[384597924,1757469056884,-480.0,0.0001452,2]
[384597925,1757469056894,-480.0,0.00014794,2]
[384597926,1757469056904,-480.0,0.00014794,2]
[384597927,1757469056916,-480.0,0.00015068,2]
[384597928,1757469056928,-480.0,0.00015068,2]
[384597929,1757469056937,-480.0,0.00015342,2]
[384597930,1757469056946,-480.0,0.00015342,2]
[384597931,1757469056955,-831.23154343,0.00015616,2]
[384597932,1757469056964,-480.0,0.00015616,2]
[384597933,1757469056974,-480.0,0.00015616,2]
[384597934,1757469056984,-997.83,0.00015616,2]
[384597935,1757469056994,-480.0,0.00015616,2]
[384597936,1757469057004,-880.46,0.00015616,2]
[384597937,1757469057014,-480.0,0.00015616,2]
[384597938,1757469057023,-832.77,0.00015616,2]
[384597939,1757469057033,-480.0,0.00015616,2]
[384597940,1757469057043,-480.0,0.00015616,2]
[384597941,1757469057052,-591.6,0.00015616,2]
[384597942,1757469057063,-480.0,0.00015616,2]
[384597943,1757469057073,-480.0,0.00015616,2]
[384597944,1757469057083,-480.0,0.00015616,2]
[384597945,1757469057093,-480.0,0.00015616,2]
[384597946,1757469057102,-480.0,0.00015616,2]
[384597947,1757469057112,-480.0,0.00015616,2]
[384597948,1757469057122,-480.0,0.00015616,2]
[384597949,1757469057132,-900.68,0.00015616,2]
[384597950,1757469057141,-352.00017417,0.00015616,2]
[384597951,1757469057152,-127.99982583,0.00015616,2]
[384597952,1757469057161,-838.72,0.00015616,2]
[384597953,1757469057170,-480.0,0.00015616,2]
[384597954,1757469057180,-480.0,0.00015616,2]
[384597955,1757469057189,-480.0,0.00015616,2]
[384597956,1757469057198,-480.0,0.00015616,2]
[384597957,1757469057207,-480.0,0.00015616,2]
[384597958,1757469057216,-480.0,0.00015616,2]
[384597959,1757469057227,-480.0,0.00015616,2]
[384597960,1757469057237,-480.0,0.00015616,2]
[384597961,1757469057248,-480.0,0.00015616,2]
[384597962,1757469057261,-480.0,0.00015616,2]
[384597963,1757469057271,-480.0,0.00015616,2]
[384597964,1757469057282,-480.0,0.00015616,2]
[384597965,1757469057291,-480.0,0.00015616,2]
[384597966,1757469057302,-542.45,0.00015616,2]
[384597967,1757469057311,-535.37,0.00015616,2]
[384597968,1757469057322,-480.0,0.00015616,2]
[384597969,1757469057332,-480.0,0.00015616,2]
[384597970,1757469057341,-497.01020828,0.00015616,2]
[384597971,1757469057350,-832.79,0.00015616,2]
[384597972,1757469057360,-480.0,0.00015616,2]
[384597973,1757469057369,-3879.1,0.00015616,2]
[384597974,1757469057378,-480.0,0.00015616,2]
[384597975,1757469057387,-536.0,0.00015616,2]
[384597976,1757469057396,-2370.24,0.00015616,2]
[384597977,1757469057405,-480.0,0.00015616,2]
[384597978,1757469057413,-480.0,0.00015616,2]
[384597979,1757469057422,-480.0,0.00015616,2]
[384597980,1757469057432,-480.0,0.00015616,2]
[384597981,1757469057442,-480.0,0.00015616,2]
[384597982,1757469057452,-993.33,0.00015616,2]
[384597983,1757469057461,-480.0,0.00015616,2]
[384597984,1757469057471,-1897.73,0.00015616,2]
[384597985,1757469057480,-480.0,0.00015616,2]
[384597986,1757469057489,-480.0,0.00015616,2]
[384597987,1757469057498,-1860.62,0.00015616,2]
[384597988,1757469057507,-480.0,0.00015616,2]
[384597989,1757469057516,-480.0,0.00015616,2]
[384597990,1757469057525,-2000.0,0.00015616,2]
[384597991,1757469057534,-2500.0,0.00015664,2]
[384597992,1757469057543,-194.36710375,0.00015668,2]
[384597993,1757469057552,-1017.9468469,0.00015678,2]
[384597994,1757469057561,-151.0,0.000157,2]
[384597995,1757469057569,-360.0,0.00015788,2]
[384597996,1757469057578,-480.0,0.00015889,2]
[384597997,1757469057587,-480.0,0.00015889,2]
[384597998,1757469057596,-492.25,0.00015889,2]
[384597999,1757469057605,-480.0,0.00015889,2]
[384598000,1757469057711,-480.0,0.00015889,2]
[384598001,1757469057721,-154.839679,0.00015889,2]
[384598002,1757469057730,-151.0,0.00015889,2]
[384598003,1757469057739,-154.839679,0.00015889,2]
[384598004,1757469057748,-154.839679,0.00015889,2]
[384598005,1757469057757,-154.839679,0.00015889,2]
[384598006,1757469057766,-300.123743,0.00015889,2]
[384598007,1757469057775,-300.123743,0.00015889,2]
[384598008,1757469057785,-300.123743,0.00015889,2]
[384598009,1757469057793,-300.123743,0.00015889,2]
[384598010,1757469057802,-480.0,0.00015889,2]
[384598011,1757469057811,-480.0,0.00015889,2]
[384598012,1757469057820,-490.20662658,0.0001589,2]
[384598013,1757469057829,-492.31335443,0.0001589,2]
[384598014,1757469057837,-489.75669345,0.0001589,2]
[384598015,1757469057846,-480.0,0.0001589,2]
[384598016,1757469057856,-488.51382705,0.0001589,2]
[384598017,1757469057865,-514.14212143,0.0001589,2]
[384598018,1757469057874,-480.0,0.0001589,2]
[384598019,1757469057884,-480.0,0.0001589,2]
[384598020,1757469057893,-480.0,0.0001589,2]
[384598021,1757469057903,-480.0,0.0001589,2]
[384598022,1757469057915,-480.0,0.0001589,2]
[384598023,1757469057925,-151.0,0.0001589,2]
[384598024,1757469057934,-480.0,0.0001589,2]
[384598025,1757469057943,-151.0,0.0001589,2]
[384598026,1757469057952,-151.0,0.0001589,2]
[384598027,1757469057962,-151.0,0.0001589,2]
[384598028,1757469057971,-153.635042,0.0001589,2]
[384598029,1757469057980,-480.0,0.0001589,2]
[384598030,1757469057992,-557.14699346,0.0001589,2]
[384598031,1757469058001,-480.0,0.0001589,2]
[384598032,1757469058010,-480.0,0.0001589,2]
[384598033,1757469058019,-480.0,0.0001589,2]
[384598034,1757469058028,-480.0,0.0001589,2]
[384598035,1757469058037,-480.0,0.0001589,2]
[384598036,1757469058047,-480.0,0.0001589,2]
[384598037,1757469058056,-480.0,0.0001589,2]
[384598038,1757469058066,-480.0,0.0001589,2]
[384598039,1757469058077,-480.0,0.0001589,2]
[384598040,1757469058089,-480.0,0.0001589,2]
[384598041,1757469058100,-480.0,0.0001589,2]
[384598042,1757469058114,-480.0,0.0001589,2]
[384598043,1757469058124,-480.0,0.0001589,2]
[384598044,1757469058135,-941.92,0.0001589,2]
[384598045,1757469058144,-490.98991829,0.0001589,2]
[384598046,1757469058153,-480.0,0.0001589,2]
[384598047,1757469058162,-480.0,0.0001589,2]
[384598048,1757469058172,-8765.97,0.0001589,2]
[384598049,1757469058182,-480.0,0.0001589,2]
[384598050,1757469058193,-480.0,0.0001589,2]
[384598051,1757469058203,-997.83,0.0001589,2]
[384598052,1757469058212,-480.0,0.0001589,2]
[384598053,1757469058223,-880.46,0.0001589,2]
[384598054,1757469058232,-480.0,0.0001589,2]
[384598055,1757469058243,-151.0,0.0001589,2]
[384598056,1757469058252,-832.77,0.0001589,2]
[384598057,1757469058261,-151.0,0.0001589,2]
[384598058,1757469058270,-480.0,0.0001589,2]
[384598059,1757469058279,-480.0,0.0001589,2]
[384598060,1757469058288,-151.0,0.0001589,2]
[384598061,1757469058298,-591.6,0.0001589,2]
[384598062,1757469058307,-300.142406,0.0001589,2]
[384598063,1757469058316,-480.0,0.0001589,2]
[384598064,1757469058325,-480.0,0.0001589,2]
[384598065,1757469058334,-480.0,0.0001589,2]
[384598066,1757469058344,-480.0,0.0001589,2]
[384598067,1757469058354,-480.0,0.0001589,2]
[384598068,1757469058364,-480.0,0.0001589,2]
[384598069,1757469058374,-480.0,0.0001589,2]
[384598070,1757469058383,-900.68,0.0001589,2]
[384598071,1757469058393,-480.0,0.0001589,2]
[384598072,1757469058402,-838.72,0.0001589,2]
[384598073,1757469058412,-480.0,0.0001589,2]
[384598074,1757469058421,-480.0,0.0001589,2]
[384598075,1757469058431,-480.0,0.0001589,2]
[384598076,1757469058440,-480.0,0.0001589,2]
[384598077,1757469058449,-480.0,0.0001589,2]
[384598078,1757469058458,-191.628134,0.0001589,2]
[384598079,1757469058467,-191.628134,0.0001589,2]
[384598080,1757469058476,-191.628134,0.0001589,2]
[384598081,1757469058485,-480.0,0.0001589,2]
[384598082,1757469058495,-480.0,0.0001589,2]
[384598083,1757469058504,-191.628134,0.0001589,2]
[384598084,1757469058513,-480.0,0.0001589,2]
[384598085,1757469058522,-487.92170566,0.0001589,2]
[384598086,1757469058531,-480.0,0.0001589,2]
[384598087,1757469058540,-480.0,0.0001589,2]
[384598088,1757469058550,-480.0,0.0001589,2]
[384598089,1757469058559,-480.0,0.0001589,2]
[384598090,1757469058568,-542.45,0.0001589,2]
[384598091,1757469058578,-151.0,0.0001589,2]
[384598092,1757469058587,-535.37,0.0001589,2]
[384598093,1757469058596,-151.0,0.0001589,2]
[384598094,1757469058606,-151.0,0.0001589,2]
[384598095,1757469058615,-203.664871,0.0001589,2]
[384598096,1757469058624,-480.0,0.0001589,2]
[384598097,1757469058634,-480.0,0.0001589,2]
[384598098,1757469058643,-832.79,0.0001589,2]
[384598099,1757469058652,-485.1676575,0.0001589,2]
[384598100,1757469058662,-3879.1,0.0001589,2]
[384598101,1757469058671,-480.0,0.0001589,2]
[384598102,1757469058680,-536.0,0.0001589,2]
[384598103,1757469058690,-2370.24,0.0001589,2]
[384598104,1757469058698,-480.0,0.0001589,2]
[384598105,1757469058707,-490.59580993,0.0001589,2]
[384598106,1757469058716,-480.0,0.0001589,2]
[384598107,1757469058725,-480.0,0.0001589,2]
[384598108,1757469058734,-480.0,0.0001589,2]
[384598109,1757469058744,-993.33,0.0001589,2]
[384598110,1757469058753,-480.0,0.0001589,2]
[384598111,1757469058762,-1897.73,0.0001589,2]
[384598112,1757469058771,-480.0,0.0001589,2]
[384598113,1757469058780,-480.0,0.0001589,2]
[384598114,1757469058790,-151.0,0.0001589,2]
[384598115,1757469058799,-227.06103591,0.0001589,2]
[384598116,1757469058808,-1860.62,0.0001589,2]
[384598117,1757469058817,-489.85049425,0.0001589,2]
[384598118,1757469058827,-480.0,0.0001589,2]
[384598119,1757469058837,-587.0,0.00016102,2]
[384598120,1757469058848,-480.0,0.00016163,2]
[384598121,1757469058857,-382.6492076,0.00016163,2]
[384598122,1757469058866,-492.25,0.00016163,2]
[384598123,1757469058877,-488.39322244,0.00016163,2]
[384598124,1757469058887,-480.0,0.00016163,2]
[384598125,1757469058896,-493.18007494,0.00016163,2]
[384598126,1757469058907,-480.0,0.00016163,2]
[384598127,1757469058919,-628.59588209,0.00016164,2]
[384598128,1757469058928,-480.0,0.00016164,2]
[384598129,1757469058937,-246.78074,0.00016164,2]
[384598130,1757469058946,-151.0,0.00016164,2]
[384598131,1757469058956,-480.0,0.00016164,2]
[384598132,1757469058965,-151.0,0.00016164,2]
[384598133,1757469058974,-480.0,0.00016164,2]
[384598134,1757469058983,-363.70947972,0.00016164,2]
[384598135,1757469058993,-351.40458839,0.00016164,2]
[384598136,1757469059002,-201.31897899,0.00016164,2]
[384598137,1757469059011,-615.20517676,0.00016164,2]
[384598138,1757469059020,-480.0,0.00016164,2]
[384598139,1757469059029,-488.19160927,0.00016164,2]
[384598140,1757469059038,-604.7697605,0.00016164,2]
[384598141,1757469059047,-493.22164593,0.00016164,2]
[384598142,1757469059057,-488.7307436,0.00016164,2]
[384598143,1757469059066,-480.0,0.00016164,2]
[384598144,1757469059075,-480.0,0.00016164,2]
[384598145,1757469059084,-502.3723421,0.00016164,2]
[384598146,1757469059093,-490.24044286,0.00016164,2]
[384598147,1757469059102,-488.4053597,0.00016164,2]
[384598148,1757469059112,-480.0,0.00016164,2]
[384598149,1757469059122,-480.0,0.00016164,2]
[384598150,1757469059132,-480.0,0.00016164,2]
[384598151,1757469059141,-941.92,0.00016164,2]
[384598152,1757469059151,-489.33266888,0.00016164,2]
[384598153,1757469059159,-480.0,0.00016164,2]
[384598154,1757469059169,-8765.97,0.00016164,2]
[384598155,1757469059178,-486.90503626,0.00016164,2]
[384598156,1757469059187,-480.0,0.00016164,2]
[384598157,1757469059196,-997.83,0.00016164,2]
[384598158,1757469059206,-480.0,0.00016164,2]
[384598159,1757469059215,-880.46,0.00016164,2]
[384598160,1757469059224,-490.30875463,0.00016164,2]
[384598161,1757469059233,-832.77,0.00016164,2]
[384598162,1757469059242,-480.0,0.00016164,2]
[384598163,1757469059251,-480.0,0.00016164,2]
[384598164,1757469059261,-591.6,0.00016164,2]
[384598165,1757469059270,-480.0,0.00016164,2]
[384598166,1757469059279,-480.0,0.00016164,2]
[384598167,1757469059288,-489.34940837,0.00016164,2]
[384598168,1757469059297,-521.61568342,0.00016164,2]
[384598169,1757469059307,-480.0,0.00016164,2]
[384598170,1757469059316,-491.13614081,0.00016164,2]
[384598171,1757469059325,-480.0,0.00016164,2]
[384598172,1757469059334,-900.68,0.00016164,2]
[384598173,1757469059344,-240.94776544,0.00016164,2]
[384598174,1757469059353,-838.72,0.00016164,2]
[384598175,1757469059362,-487.67841122,0.00016164,2]
[384598176,1757469059372,-485.46306687,0.00016164,2]
[384598177,1757469059381,-486.88160834,0.00016164,2]
[384598178,1757469059390,-480.0,0.00016164,2]
[384598179,1757469059399,-480.0,0.00016164,2]
[384598180,1757469059408,-480.0,0.00016164,2]
[384598181,1757469059418,-480.0,0.00016164,2]
[384598182,1757469059428,-484.61851277,0.00016164,2]
[384598183,1757469059437,-480.0,0.00016164,2]
[384598184,1757469059447,-480.0,0.00016164,2]
[384598185,1757469059456,-480.0,0.00016164,2]
[384598186,1757469059466,-501.43530341,0.00016164,2]
[384598187,1757469059475,-542.45,0.00016164,2]
[384598188,1757469059485,-535.37,0.00016164,2]
[384598189,1757469059493,-487.5501177,0.00016164,2]
[384598190,1757469059502,-480.0,0.00016164,2]
[384598191,1757469059512,-832.79,0.00016164,2]
[384598192,1757469059521,-3879.1,0.00016164,2]
[384598193,1757469059530,-480.0,0.00016164,2]
[384598194,1757469059539,-536.0,0.00016164,2]
[384598195,1757469059549,-2370.24,0.00016164,2]
[384598196,1757469059558,-480.0,0.00016164,2]
[384598197,1757469059567,-480.0,0.00016164,2]
[384598198,1757469059576,-480.0,0.00016164,2]
[384598199,1757469059585,-480.0,0.00016164,2]
[384598200,1757469059595,-993.33,0.00016164,2]
[384598201,1757469059604,-480.0,0.00016164,2]
[384598202,1757469059613,-1897.73,0.00016164,2]
[384598203,1757469059622,-480.0,0.00016164,2]
[384598204,1757469059631,-480.0,0.00016164,2]
[384598205,1757469059640,-1860.62,0.00016164,2]
[384598206,1757469059649,-480.0,0.00016164,2]
[384598207,1757469059659,-504.46064449,0.00016164,2]
[384598208,1757469059668,-151.0,0.000162,2]
[384598209,1757469059678,-3000.0,0.00016212,2]
[384598210,1757469059687,-2351.0,0.00016213,2]
[384598211,1757469059696,-460.0,0.00016336,2]
[384598212,1757469059705,-151.0,0.00016437,2]
[384598213,1757469059714,-480.0,0.00016437,2]
[384598214,1757469059724,-492.25,0.00016437,2]
[384598215,1757469059734,-480.0,0.00016437,2]
[384598216,1757469059743,-480.0,0.00016437,2]
[384598217,1757469059752,-520.0,0.00016438,3]
[384598218,1757469059761,-441.22463859,0.00016438,3]
[384598219,1757469059771,-480.0,0.00016438,2]
[384598220,1757469059781,-480.0,0.00016438,2]
[384598221,1757469059791,-480.0,0.00016438,2]
[384598222,1757469059800,-480.0,0.00016438,2]
[384598223,1757469059809,-480.0,0.00016438,2]
[384598224,1757469059818,-480.0,0.00016438,2]
[384598225,1757469059827,-480.0,0.00016438,2]
[384598226,1757469059837,-480.0,0.00016438,2]
[384598227,1757469059846,-480.0,0.00016438,2]
[384598228,1757469059855,-941.92,0.00016438,2]
[384598229,1757469059864,-480.0,0.00016438,2]
[384598230,1757469059873,-8765.97,0.00016438,2]
[384598231,1757469059884,-480.0,0.00016438,2]
[384598232,1757469059895,-997.83,0.00016438,2]
[384598233,1757469059904,-480.0,0.00016438,2]
[384598234,1757469059917,-880.46,0.00016438,2]
[384598235,1757469059927,-832.77,0.00016438,2]
[384598236,1757469059936,-480.0,0.00016438,2]
[384598237,1757469059945,-480.0,0.00016438,2]
[384598238,1757469059956,-591.6,0.00016438,2]
[384598239,1757469059965,-480.0,0.00016438,2]
[384598240,1757469059974,-480.0,0.00016438,2]
[384598241,1757469059983,-480.0,0.00016438,2]
[384598242,1757469059994,-480.0,0.00016438,2]
[384598243,1757469060003,-900.68,0.00016438,2]
[384598244,1757469060013,-838.72,0.00016438,2]
[384598245,1757469060023,-480.0,0.00016438,2]
[384598246,1757469060033,-480.0,0.00016438,2]
[384598247,1757469060043,-549.74827985,0.00016438,2]
[384598248,1757469060052,-480.0,0.00016438,2]
[384598249,1757469060062,-480.0,0.00016438,2]
[384598250,1757469060072,-278.03946091,0.00016438,2]
[384598251,1757469060082,-480.0,0.00016438,2]
[384598252,1757469060094,-542.45,0.00016438,2]
[384598253,1757469060103,-535.37,0.00016438,2]
[384598254,1757469060140,-157.0088305,0.00016438,2]
[384598255,1757469060149,-832.79,0.00016438,2]
[384598256,1757469060158,-3879.1,0.00016438,2]
[384598257,1757469060167,-480.0,0.00016438,2]
[384598258,1757469060177,-536.0,0.00016438,2]
[384598259,1757469060186,-2370.24,0.00016438,2]
[384598260,1757469060195,-480.0,0.00016438,2]
[384598261,1757469060205,-480.0,0.00016438,2]
[384598262,1757469060215,-480.0,0.00016438,2]
[384598263,1757469060225,-480.0,0.00016438,2]
[384598264,1757469060234,-993.33,0.00016438,2]
[384598265,1757469060244,-480.0,0.00016438,2]
[384598266,1757469060255,-1897.73,0.00016438,2]
[384598267,1757469060266,-480.0,0.00016438,2]
[384598268,1757469060276,-480.0,0.00016438,2]
[384598269,1757469060286,-1860.62,0.00016438,2]
[384598270,1757469060295,-864.0,0.00016658,2]
[384598271,1757469060304,-151.0,0.000167,2]
[384598272,1757469060313,-480.0,0.00016711,2]
[384598273,1757469060322,-492.25,0.00016711,2]
[384598274,1757469060331,-269.80007373,0.00016711,2]
[384598275,1757469060340,-480.0,0.00016711,2]
[384598276,1757469060350,-480.0,0.00016712,2]
[384598277,1757469060359,-480.0,0.00016712,2]
[384598278,1757469060368,-480.0,0.00016712,2]
[384598279,1757469060377,-480.0,0.00016712,2]
[384598280,1757469060386,-480.0,0.00016712,2]
[384598281,1757469060395,-480.0,0.00016712,2]
[384598282,1757469060404,-188.59077201,0.00016712,2]
[384598283,1757469060414,-480.0,0.00016712,2]
[384598284,1757469060424,-480.0,0.00016712,2]
[384598285,1757469060434,-941.92,0.00016712,2]
[384598286,1757469060443,-329.86987838,0.00016712,2]
[384598287,1757469060452,-8765.97,0.00016712,2]
[384598288,1757469060461,-480.0,0.00016712,2]
[384598289,1757469060470,-997.83,0.00016712,2]
[384598290,1757469060480,-480.0,0.00016712,2]
[384598291,1757469060490,-880.46,0.00016712,2]
[384598292,1757469060499,-832.77,0.00016712,2]
[384598293,1757469060509,-480.0,0.00016712,2]
[384598294,1757469060518,-480.0,0.00016712,2]
[384598295,1757469060527,-591.6,0.00016712,2]
[384598296,1757469060536,-480.0,0.00016712,2]
[384598297,1757469060544,-480.0,0.00016712,2]
[384598298,1757469060553,-480.0,0.00016712,2]
[384598299,1757469060563,-480.0,0.00016712,2]
[384598300,1757469060573,-900.68,0.00016712,2]
[384598301,1757469060582,-838.72,0.00016712,2]
[384598302,1757469060592,-480.0,0.00016712,2]
[384598303,1757469060603,-480.0,0.00016712,2]
[384598304,1757469060616,-480.0,0.00016712,2]
[384598305,1757469060625,-480.0,0.00016712,2]
[384598306,1757469060635,-480.0,0.00016712,2]
[384598307,1757469060643,-542.45,0.00016712,2]
[384598308,1757469060653,-535.37,0.00016712,2]
[384598309,1757469060662,-832.79,0.00016712,2]
[384598310,1757469060672,-3879.1,0.00016712,2]
[384598311,1757469060681,-480.0,0.00016712,2]
[384598312,1757469060690,-536.0,0.00016712,2]
[384598313,1757469060699,-2370.24,0.00016712,2]
[384598314,1757469060709,-480.0,0.00016712,2]
[384598315,1757469060719,-480.0,0.00016712,2]
[384598316,1757469060729,-480.0,0.00016712,2]
[384598317,1757469060738,-480.0,0.00016712,2]
[384598318,1757469060747,-993.33,0.00016712,2]
[384598319,1757469060756,-480.0,0.00016712,2]
[384598320,1757469060765,-1897.73,0.00016712,2]
[384598321,1757469060774,-480.0,0.00016712,2]
[384598322,1757469060782,-480.0,0.00016712,2]
[384598323,1757469060792,-1860.62,0.00016712,2]
[384598324,1757469060802,-824.72914766,0.0001676,2]
[384598325,1757469060811,-3000.0,0.0001678,2]
[384598326,1757469060820,-560.0,0.00016883,2]
[384598327,1757469060829,-480.0,0.00016985,2]
[384598328,1757469060839,-492.25,0.00016985,2]
[384598329,1757469060848,-480.0,0.00016985,2]
[384598330,1757469060856,-151.0,0.00016985,2]
[384598331,1757469060866,-480.0,0.00016986,2]
[384598332,1757469060875,-480.0,0.00016986,2]
[384598333,1757469060884,-501.19884971,0.00016986,2]
[384598334,1757469060893,-480.0,0.00016986,2]